fUST/lending_fUST_20251217
["ID","MTS","AMOUNT","RATE_DAILY","PERIOD"]
[398896470,1765972762762,-300.0,0.00023665,2]
[398896471,1765972762785,-150.0,0.00023666,2]
[398896472,1765972762808,-152.0,0.00023666,3]
[398896473,1765972762830,-152.0,0.00023666,3]
[398896474,1765972762852,-152.0,0.00023666,3]
[398896475,1765972762875,-153.1296881,0.00023666,3]
[398896476,1765972762902,-151.0,0.00023666,3]
[398896477,1765972762924,-151.0,0.00023666,3]
[398896478,1765972762947,-151.0,0.00023666,3]
[398896479,1765972762970,-151.0,0.00023666,3]
[398896480,1765972762992,-151.0,0.00023666,3]
[398896481,1765972763014,-151.0,0.00023666,3]
[398896482,1765972763038,-151.0,0.00023666,3]
[398896483,1765972763067,-151.0,0.00023666,3]
[398896484,1765972763106,-2000.0,0.00025,2]
[398896485,1765972763143,-177.0,0.00025666,2]
[398896486,1765972763174,-204.0,0.00027666,2]
[398896487,1765972763208,-1000.0,0.00027685,30]
[398896488,1765972763239,-666.66666666,0.00027952,2]
[398896489,1765972763267,-500.0,0.00028543,2]
[398896490,1765972763295,-500.0,0.00028543,2]
[398896491,1765972763325,-150.0,0.00028543,2]
[398896492,1765972763353,-150.0,0.00028543,2]
[398896493,1765972763382,-151.50226046,0.00028543,2]
[398896494,1765972763411,-150.0,0.00028543,2]
[398896495,1765972763440,-150.0,0.00028543,2]
[398896496,1765972763467,-500.0,0.00028543,2]
[398896497,1765972763497,-150.0,0.00028543,2]
[398896498,1765972763527,-150.0,0.00028543,2]
[398896499,1765972763556,-500.0,0.00028543,2]
[398896500,1765972763586,-500.0,0.00028543,2]
[398896501,1765972763617,-150.0,0.00028543,2]
[398896502,1765972763644,-150.0,0.00028543,2]
[398896503,1765972763672,-202.09142869,0.00028543,2]
[398896504,1765972763702,-500.0,0.00028543,2]
[398896505,1765972763729,-150.0,0.00028543,2]
[398896506,1765972763758,-201.70744982,0.00028543,2]
[398896507,1765972763788,-500.0,0.00028543,2]
[398896508,1765972763817,-3834.69158268,0.00028579,2]
[398896509,1765972763847,-236.73,0.00028669,10]
[398896510,1765972763876,-159.45855013,0.00028679,2]
[398896511,1765972763906,-3569.3676491,0.00028679,2]
[398896512,1765972763938,-500.0,0.00028679,2]
[398896513,1765972763967,-3569.3676491,0.00028679,2]
[398896514,1765972763997,-179.22721928,0.00028679,2]
[398896515,1765972764027,-210.84314247,0.00028679,2]
[398896516,1765972764051,-3569.3676491,0.00028679,2]
[398896517,1765972764077,-364.79838239,0.00028679,2]
[398896518,1765972764106,-3569.3676491,0.00028679,2]
[398896519,1765972764134,-3569.3676491,0.00028679,2]
[398896520,1765972764163,-3569.3676491,0.00028679,2]
[398896521,1765972764190,-3569.3676491,0.00028679,2]
[398896522,1765972764215,-3569.3676491,0.00028679,2]
[398896523,1765972764241,-3569.3676491,0.00028679,2]
[398896524,1765972764268,-3569.3676491,0.00028679,2]
[398896525,1765972764295,-3569.3676491,0.00028679,2]
[398896526,1765972764320,-3569.3676491,0.00028679,2]
[398896527,1765972764344,-3569.3676491,0.00028679,2]
[398896528,1765972764369,-3569.3676491,0.00028679,2]
[398896529,1765972764396,-3569.3676491,0.00028679,2]
[398896530,1765972764423,-3569.3676491,0.00028679,2]
[398896531,1765972764450,-3569.3676491,0.00028679,2]
[398896532,1765972764479,-3569.3676491,0.00028679,2]
[398896533,1765972764504,-3569.3676491,0.00028679,2]
[398896534,1765972764531,-3569.3676491,0.00028679,2]
[398896535,1765972764558,-3569.3676491,0.00028679,2]
[398896536,1765972764583,-3569.3676491,0.00028679,2]
[398896537,1765972764610,-3569.3676491,0.00028679,2]
[398896538,1765972764636,-3569.3676491,0.00028679,2]
[398896539,1765972764662,-3569.3676491,0.00028679,2]
[398896540,1765972764687,-3569.3676491,0.00028679,2]
[398896541,1765972764713,-3569.3676491,0.00028679,2]
[398896542,1765972764738,-3569.3676491,0.00028679,2]
[398896543,1765972764767,-3569.3676491,0.00028679,2]
[398896544,1765972764795,-3569.3676491,0.00028679,2]
[398896545,1765972764820,-3569.3676491,0.00028679,2]
[398896546,1765972765014,-3569.3676491,0.00028679,2]
[398896547,1765972765038,-3569.3676491,0.00028679,2]
[398896548,1765972765061,-3569.3676491,0.00028679,2]
[398896549,1765972765085,-3569.3676491,0.00028679,2]
[398896550,1765972765111,-3569.3676491,0.00028679,2]
[398896551,1765972765135,-3569.3676491,0.00028679,2]
[398896552,1765972765159,-3569.3676491,0.00028679,2]
[398896553,1765972765182,-3569.3676491,0.00028679,2]
[398896554,1765972765205,-3569.3676491,0.00028679,2]
[398896555,1765972765229,-3569.3676491,0.00028679,2]
[398896556,1765972765252,-3569.3676491,0.00028679,2]
[398896557,1765972765277,-3569.3676491,0.00028679,2]
[398896558,1765972765301,-3569.3676491,0.00028679,2]
[398896559,1765972765324,-3569.3676491,0.00028679,2]
[398896560,1765972765347,-3569.3676491,0.00028679,2]
[398896561,1765972765370,-3569.3676491,0.00028679,2]
[398896562,1765972765392,-3569.3676491,0.00028679,2]
[398896563,1765972765415,-3569.3676491,0.00028679,2]
[398896564,1765972765437,-3569.3676491,0.00028679,2]
[398896565,1765972765463,-3569.3676491,0.00028679,2]
[398896566,1765972765486,-3569.3676491,0.00028679,2]
[398896567,1765972765508,-3569.3676491,0.00028679,2]
[398896568,1765972765530,-3569.3676491,0.00028679,2]
[398896569,1765972765552,-3569.3676491,0.00028679,2]
[398896570,1765972765576,-3569.3676491,0.00028679,2]
[398896571,1765972765599,-3569.3676491,0.00028679,2]
[398896572,1765972765623,-3569.3676491,0.00028679,2]
[398896573,1765972765646,-3569.3676491,0.00028679,2]
[398896574,1765972765670,-3569.3676491,0.00028679,2]
[398896575,1765972765694,-3569.3676491,0.00028679,2]
[398896576,1765972765717,-3569.3676491,0.00028679,2]
[398896577,1765972765740,-3569.3676491,0.00028679,2]
[398896578,1765972765763,-3569.3676491,0.00028679,2]
[398896579,1765972765785,-3569.3676491,0.00028679,2]
[398896580,1765972765807,-3569.3676491,0.00028679,2]
[398896581,1765972765830,-3569.3676491,0.00028679,2]
[398896582,1765972765852,-3569.3676491,0.00028679,2]
[398896583,1765972765874,-3569.3676491,0.00028679,2]
[398896584,1765972765899,-3569.3676491,0.00028679,2]
[398896585,1765972765922,-3569.3676491,0.00028679,2]
[398896586,1765972765944,-3569.3676491,0.00028679,2]
[398896587,1765972765967,-3569.3676491,0.00028679,2]
[398896588,1765972765990,-3569.36764909,0.00028679,2]
[398896589,1765972766012,-3569.3676491,0.00028679,2]
[398896590,1765972766035,-3569.3676491,0.00028679,2]
[398896591,1765972766058,-3569.3676491,0.00028679,2]
[398896592,1765972766082,-3569.3676491,0.00028679,2]
[398896593,1765972766105,-3569.3676491,0.00028679,2]
[398896594,1765972766128,-3569.3676491,0.00028679,2]
[398896595,1765972766151,-3569.3676491,0.00028679,2]
[398896596,1765972766174,-3569.3676491,0.00028679,2]
[398896597,1765972766196,-3569.3676491,0.00028679,2]
[398896598,1765972766219,-3569.3676491,0.00028679,2]
[398896599,1765972766242,-3569.3676491,0.00028679,2]
[398896600,1765972766265,-3569.3676491,0.00028679,2]
[398896601,1765972766288,-3569.3676491,0.00028679,2]
[398896602,1765972766310,-3569.3676491,0.00028679,2]
[398896603,1765972766333,-3569.3676491,0.00028679,2]
[398896604,1765972766356,-3569.36764896,0.00028679,2]
[398896605,1765972766378,-502.62683157,0.0002868,2]
[398896606,1765972766401,-500.0,0.0002868,2]
[398896607,1765972766424,-203.84055143,0.0002868,2]
[398896608,1765972766448,-150.0,0.0002868,2]
[398896609,1765972766472,-150.0,0.0002868,2]
[398896610,1765972766497,-150.0,0.0002868,2]
[398896611,1765972766522,-608.24128653,0.0002868,2]
[398896612,1765972766545,-150.0,0.0002868,2]
[398896613,1765972766568,-150.0,0.0002868,2]
[398896614,1765972766590,-500.0,0.0002868,2]
[398896615,1765972766615,-500.0,0.0002868,2]
[398896616,1765972766637,-152.21406531,0.0002868,2]
[398896617,1765972766660,-150.0,0.0002868,2]
[398896618,1765972766684,-500.0,0.0002868,2]
[398896619,1765972766709,-150.0,0.0002868,2]
[398896620,1765972766733,-500.0,0.0002868,2]
[398896621,1765972766757,-202.08722906,0.00028706,2]
[398896622,1765972766781,-166.40767161,0.0002877,2]
[398896623,1765972766804,-150.0,0.00028779,30]
[398896624,1765972766827,-150.0,0.00028779,30]
[398896625,1765972766854,-221.32799909,0.00028779,30]
[398896626,1765972766876,-51229.31957587,0.00028779,2]
[398896627,1765972777110,-150.0,0.0002589,2]
[398896628,1765972777135,-177.0,0.0002789,2]
[398896629,1765972777158,-197.27,0.00028779,10]
[398896630,1765972777182,-93453.61950513,0.00028779,2]
[398896631,1765972777321,-408.98290292,0.00028779,2]
[398896632,1765972777345,-151.0,0.00028789,7]
[398896633,1765972777368,-151.0,0.00028789,7]
[398896634,1765972777392,-151.0,0.00028789,7]
[398896635,1765972777416,-151.0,0.00028789,7]
[398896636,1765972777442,-240.913267,0.00028789,7]
[398896637,1765972777465,-156.529842,0.00028789,7]
[398896638,1765972777489,-156.529842,0.00028789,7]
[398896639,1765972777513,-156.529842,0.00028789,7]
[398896640,1765972777537,-156.529842,0.00028789,7]
[398896641,1765972777561,-156.529842,0.00028789,7]
[398896642,1765972777585,-156.529842,0.00028789,7]
[398896643,1765972777608,-156.529842,0.00028789,7]
[398896644,1765972777632,-156.529842,0.00028789,7]
[398896645,1765972777656,-156.529842,0.00028789,7]
[398896646,1765972777678,-156.529842,0.00028789,7]
[398896647,1765972777706,-156.529842,0.00028789,7]
[398896648,1765972777730,-156.529842,0.00028789,7]
[398896649,1765972777753,-156.529842,0.00028789,7]
[398896650,1765972777776,-156.529842,0.00028789,7]
[398896651,1765972777799,-156.529842,0.00028789,7]
[398896652,1765972777822,-156.529842,0.00028789,7]
[398896653,1765972777845,-156.529842,0.00028789,7]
[398896654,1765972777869,-156.529842,0.00028789,7]
[398896655,1765972777891,-156.529842,0.00028789,7]
[398896656,1765972777913,-156.529851,0.00028789,7]
[398896657,1765972777936,-1162.863707,0.00028789,7]
[398896658,1765972777960,-1162.863707,0.00028789,7]
[398896659,1765972777982,-1162.863707,0.00028789,7]
[398896660,1765972778005,-1162.863707,0.00028789,7]
[398896661,1765972778027,-1162.863707,0.00028789,7]
[398896662,1765972778051,-1162.863707,0.00028789,7]
[398896663,1765972778074,-1162.863707,0.00028789,7]
[398896664,1765972778098,-1162.863707,0.00028789,7]
[398896665,1765972778120,-1162.863707,0.00028789,7]
[398896666,1765972778142,-1162.863707,0.00028789,7]
[398896667,1765972778167,-1162.863707,0.00028789,7]
[398896668,1765972778189,-1162.863707,0.00028789,7]
[398896669,1765972778213,-1162.863707,0.00028789,7]
[398896670,1765972778237,-1162.863707,0.00028789,7]
[398896671,1765972778260,-1162.863707,0.00028789,7]
[398896672,1765972778284,-1162.863707,0.00028789,7]
[398896673,1765972778307,-1162.863707,0.00028789,7]
[398896674,1765972778330,-1162.863707,0.00028789,7]
[398896675,1765972778357,-1162.863707,0.00028789,7]
[398896676,1765972778381,-1162.863711,0.00028789,7]
[398896677,1765972778404,-151.0,0.00028789,7]
[398896678,1765972778428,-151.0,0.00028789,7]
[398896679,1765972778454,-151.0,0.00028789,7]
[398896680,1765972778477,-151.0,0.00028789,7]
[398896681,1765972778500,-151.0,0.00028789,7]
[398896682,1765972778524,-151.0,0.00028789,7]
[398896683,1765972778547,-151.0,0.00028789,7]
[398896684,1765972778570,-151.0,0.00028789,7]
[398896685,1765972778595,-151.0,0.00028806,7]
[398896686,1765972778618,-151.0,0.00028806,7]
[398896687,1765972778643,-151.0,0.00028806,7]
[398896688,1765972778666,-151.0,0.00028806,7]
[398896689,1765972778689,-151.0,0.00028806,7]
[398896690,1765972778712,-151.0,0.00028806,7]
[398896691,1765972778735,-151.0,0.00028806,7]
[398896692,1765972778757,-151.0,0.00028806,7]
[398896693,1765972778781,-151.0,0.00028806,7]
[398896694,1765972778805,-151.0,0.00028806,7]
[398896695,1765972778828,-151.0,0.00028806,7]
[398896696,1765972778852,-151.0,0.00028806,7]
[398896697,1765972778875,-255.852592,0.00028806,7]
[398896698,1765972778900,-151.0,0.00028806,7]
[398896699,1765972778940,-151.0,0.00028806,7]
[398896700,1765972778968,-192.89092,0.00028806,7]
[398896701,1765972778992,-151.0,0.00028806,7]
[398896702,1765972779018,-230.482853,0.00028806,7]
[398896703,1765972779043,-24113.8231801,0.00028807,2]
[398896704,1765972779067,-279.6,0.00028807,3]
[398896705,1765972779091,-838.8,0.00028807,3]
[398896706,1765972779115,-500.0,0.00028817,2]
[398896707,1765972779139,-153.79592334,0.00028817,2]
[398896708,1765972779163,-150.0,0.00028817,2]
[398896709,1765972779187,-150.0,0.00028817,2]
[398896710,1765972779211,-150.0,0.00028817,2]
[398896711,1765972779235,-150.0,0.00028817,2]
[398896712,1765972779258,-500.0,0.00028817,2]
[398896713,1765972779280,-257.58846624,0.00028817,2]
[398896714,1765972779302,-206.47085118,0.00028817,2]
[398896715,1765972779326,-251.09076016,0.00028817,2]
[398896716,1765972779349,-243.97256902,0.00028817,2]
[398896717,1765972779372,-500.0,0.00028817,2]
[398896718,1765972779396,-151.0,0.00028817,7]
[398896719,1765972779420,-151.0,0.00028817,7]
[398896720,1765972779443,-151.0,0.00028817,7]
[398896721,1765972779465,-151.0,0.00028817,7]
[398896722,1765972779488,-151.0,0.00028817,7]
[398896723,1765972779512,-151.0,0.00028817,7]
[398896724,1765972779535,-151.0,0.00028817,7]
[398896725,1765972779557,-151.0,0.00028817,7]
[398896726,1765972779580,-151.0,0.00028817,7]
[398896727,1765972779603,-221.765393,0.00028817,7]
[398896728,1765972779626,-151.0,0.00028817,7]
[398896729,1765972779648,-151.0,0.00028817,7]
[398896730,1765972779671,-151.0,0.00028817,7]
[398896731,1765972779693,-151.0,0.00028817,7]
[398896732,1765972779716,-151.0,0.00028817,7]
[398896733,1765972779738,-151.0,0.00028817,7]
[398896734,1765972779760,-151.0,0.00028817,7]
[398896735,1765972779878,-151.0,0.00028817,7]
[398896736,1765972779902,-151.0,0.00028817,7]
[398896737,1765972779926,-151.0,0.00028817,7]
[398896738,1765972779955,-151.0,0.00028817,7]
[398896739,1765972779979,-151.0,0.00028817,7]
[398896740,1765972780001,-151.0,0.00028817,7]
[398896741,1765972780024,-151.0,0.00028817,7]
[398896742,1765972780047,-151.0,0.00028817,7]
[398896743,1765972780071,-151.0,0.00028817,7]
[398896744,1765972780095,-151.0,0.00028817,7]
[398896745,1765972780117,-168.149431,0.00028817,7]
[398896746,1765972780140,-151.0,0.00028817,7]
[398896747,1765972780165,-151.0,0.00028817,7]
[398896748,1765972780188,-151.0,0.00028817,7]
[398896749,1765972780210,-271.900501,0.00028817,7]
[398896750,1765972780233,-151.0,0.00028817,7]
[398896751,1765972780256,-151.0,0.00028817,7]
[398896752,1765972780279,-151.0,0.00028817,7]
[398896753,1765972780301,-254.456966,0.00028817,7]
[398896754,1765972780325,-151.0,0.00028817,7]
[398896755,1765972780349,-151.0,0.00028817,7]
[398896756,1765972780374,-151.0,0.00028817,7]
[398896757,1765972780397,-151.0,0.00028817,7]
[398896758,1765972780421,-151.0,0.00028817,7]
[398896759,1765972780445,-151.0,0.00028817,7]
[398896760,1765972780469,-151.0,0.00028817,7]
[398896761,1765972780491,-151.0,0.00028817,7]
[398896762,1765972780513,-151.0,0.00028817,7]
[398896763,1765972780536,-151.0,0.00028817,7]
[398896764,1765972780559,-151.0,0.00028817,7]
[398896765,1765972780584,-151.0,0.00028817,7]
[398896766,1765972780608,-151.0,0.00028817,7]
[398896767,1765972780631,-151.0,0.00028817,7]
[398896768,1765972780653,-151.0,0.00028817,7]
[398896769,1765972780676,-151.0,0.00028817,7]
[398896770,1765972780699,-151.0,0.00028817,7]
[398896771,1765972780728,-151.0,0.00028817,7]
[398896772,1765972780752,-151.0,0.00028817,7]
[398896773,1765972780776,-151.0,0.00028817,7]
[398896774,1765972780800,-151.0,0.00028817,7]
[398896775,1765972780823,-151.0,0.00028817,7]
[398896776,1765972780846,-151.0,0.00028817,7]
[398896777,1765972780869,-151.0,0.00028817,7]
[398896778,1765972780890,-151.0,0.00028817,7]
[398896779,1765972780916,-221.738177,0.00028817,7]
[398896780,1765972780938,-151.0,0.00028817,7]
[398896781,1765972780960,-151.0,0.00028817,7]
[398896782,1765972780981,-151.0,0.00028817,7]
[398896783,1765972781003,-151.0,0.00028817,7]
[398896784,1765972781027,-151.0,0.00028817,7]
[398896785,1765972781050,-151.0,0.00028817,7]
[398896786,1765972781072,-293.573713,0.00028817,7]
[398896787,1765972781095,-1000.0,0.00028817,2]
[398896788,1765972781117,-1000.0,0.00028817,2]
[398896789,1765972781139,-1000.0,0.00028817,2]
[398896790,1765972781161,-1000.0,0.00028817,2]
[398896791,1765972781183,-1000.0,0.00028817,2]
[398896792,1765972781209,-1000.0,0.00028817,2]
[398896793,1765972781231,-1000.0,0.00028817,2]
[398896794,1765972781256,-360.17092261,0.00028817,2]
[398896795,1765972781280,-1000.0,0.00028817,2]
[398896796,1765972781304,-1000.0,0.00028817,2]
[398896797,1765972781326,-1000.0,0.00028817,2]
[398896798,1765972781353,-1000.0,0.00028817,2]
[398896799,1765972781376,-404.80536867,0.00028817,2]
[398896800,1765972781399,-151.0,0.00028817,7]
[398896801,1765972781420,-151.0,0.00028817,7]
[398896802,1765972781444,-151.0,0.00028817,7]
[398896803,1765972781470,-151.0,0.00028817,7]
[398896804,1765972781492,-151.0,0.00028817,7]
[398896805,1765972781515,-151.0,0.00028817,7]
[398896806,1765972781539,-151.0,0.00028817,7]
[398896807,1765972781562,-151.0,0.00028817,7]
[398896808,1765972781584,-151.0,0.00028817,7]
[398896809,1765972781606,-151.0,0.00028817,7]
[398896810,1765972781630,-282.0,0.00028817,7]
[398896811,1765972781652,-313.71421603,0.00028954,2]
[398896812,1765972781675,-150.0,0.00028954,2]
[398896813,1765972781697,-156.94412249,0.00028954,2]
[398896814,1765972781720,-150.0,0.00028954,2]
[398896815,1765972781742,-500.0,0.00028954,2]
[398896816,1765972781765,-202.02713431,0.00028954,2]
[398896817,1765972781789,-500.0,0.00028954,2]
[398896818,1765972785953,186.138,0.00023667,30]
[398896819,1765972786533,475.0,0.00023667,30]
[398896820,1765972808062,502.16180658,0.00013699,2]
[398896821,1765972866716,150.0,8.913e-05,2]
[398896822,1765972867136,150.0,9.723e-05,2]
[398896823,1765972932626,150.0,8.935e-05,2]
[398896824,1765972933040,150.0,9.748e-05,2]
[398896825,1765972933444,150.0,0.0001056,2]
[398896826,1765972933860,150.0,0.00011372,2]
[398896827,1765972991822,948.0,0.00012,2]
[398896828,1765972999916,150.0,8.944e-05,2]
[398896829,1765973000323,150.0,9.757e-05,2]
[398896830,1765973000770,150.0,0.0001057,2]
[398896831,1765973001631,150.0,0.00011383,2]
[398896832,1765973002055,150.0,0.00012196,2]
[398896833,1765973002460,150.0,0.0001301,2]
[398896834,1765973002893,150.0,0.00013823,2]
[398896835,1765973003306,150.0,0.00014636,2]
[398896836,1765973017473,1000.0,0.00015,2]
[398896837,1765973044009,163.38,0.000105,2]
[398896838,1765973068303,150.0,8.835e-05,2]
[398896839,1765973068695,150.0,9.638e-05,2]
[398896840,1765973069115,150.0,0.00010441,2]
[398896841,1765973069558,150.0,0.00011244,2]
[398896842,1765973069974,150.0,0.00012048,2]
[398896843,1765973070398,150.0,0.00012851,2]
[398896844,1765973070871,150.0,0.00013654,2]
[398896845,1765973071707,150.86,0.00014457,2]
[398896846,1765973106671,973.37940936,0.00015,2]
[398896847,1765973106696,335.42119615,0.00015,2]
[398896848,1765973114494,5000.0,0.00015,2]
[398896849,1765973137831,576.88131003,0.00015,2]
[398896850,1765973138460,150.0,8.798e-05,2]
[398896851,1765973225134,-150.0,0.00019463,2]
[398896852,1765973225154,-177.0,0.00021463,2]
[398896853,1765973225174,-204.0,0.00023463,2]
[398896854,1765973225193,-162.84,0.00023666,30]
[398896855,1765973225212,-92.15281694,0.00025205,2]
[398896856,1765973229075,-258.90345534,0.00025205,2]
[398896857,1765973229095,-427.5,0.00025284,10]
[398896858,1765973229119,-247.5,0.00025284,10]
[398896859,1765973229139,-231.0,0.00025463,2]
[398896860,1765973229159,-258.0,0.00027463,2]
[398896861,1765973229180,-444.44444444,0.00028085,2]
[398896862,1765973229205,-150.0,0.00028532,2]
[398896863,1765973229225,-150.0,0.00028532,2]
[398896864,1765973229243,-500.0,0.00028532,2]
[398896865,1765973229263,-500.0,0.00028532,2]
[398896866,1765973229282,-500.0,0.00028532,2]
[398896867,1765973229301,-201.70719187,0.00028532,2]
[398896868,1765973229319,-152.30279601,0.00028532,2]
[398896869,1765973229339,-150.0,0.00028532,2]
[398896870,1765973229359,-150.0,0.00028532,2]
[398896871,1765973229378,-500.0,0.00028532,2]
[398896872,1765973229397,-150.0,0.00028669,2]
[398896873,1765973229421,-150.0,0.00028669,2]
[398896874,1765973229445,-513.91090207,0.00028669,2]
[398896875,1765973229468,-500.0,0.00028669,2]
[398896876,1765973229490,-531.50696445,0.00028669,2]
[398896877,1765973229512,-150.0,0.00028669,2]
[398896878,1765973229536,-89.92429579,0.00028669,2]
[398897065,1765973438692,-150.0,0.0002589,2]
[398897066,1765973438702,-177.0,0.0002789,2]
[398897067,1765973438712,-296.2962963,0.00028085,2]
[398897068,1765973438721,-60.07570421,0.00028669,2]
[398897069,1765973438730,-500.0,0.00028669,2]
[398897070,1765973438739,-2000.0,0.00028778,15]
[398897071,1765973438748,-201.49499767,0.00028806,2]
[398897072,1765973438758,-150.0,0.00028806,2]
[398897073,1765973438767,-460.62231059,0.00028806,2]
[398897074,1765973438777,-150.0,0.00028806,2]
[398897075,1765973438786,-150.0,0.00028806,2]
[398897076,1765973438795,-500.0,0.00028806,2]
[398897077,1765973438805,-2000.0,0.00028806,10]
[398897078,1765973438814,-2000.0,0.00028806,3]
[398897079,1765973438824,-2000.0,0.00028816,7]
[398897080,1765973438833,-2665.5686623,0.00028832,2]
[398897081,1765973438843,-696.80970699,0.00028935,2]
[398897082,1765973438852,-382.63780674,0.00028935,2]
[398897083,1765973438861,-150.0,0.00028943,2]
[398897084,1765973438870,-150.0,0.00028943,2]
[398897085,1765973438880,-206.7113114,0.00028943,2]
[398897086,1765973438890,-500.0,0.00028943,2]
[398897087,1765973438899,-2000.0,0.00028953,2]
[398897088,1765973438909,-225.70635499,0.0002908,2]
[398897089,1765973438919,-250.0,0.0002908,2]
[398897090,1765973438929,-500.0,0.0002908,2]
[398897091,1765973438939,-203.10234941,0.00029091,2]
[398897092,1765973438948,-157.90647009,0.00029091,2]
[398897093,1765973438958,-500.0,0.00029091,2]
[398897094,1765973438967,-500.0,0.00029217,2]
[398897095,1765973438977,-153.62348152,0.00029228,2]
[398897096,1765973438987,-150.0,0.00029353,2]
[398897097,1765973438996,-500.0,0.00029353,2]
[398897098,1765973439005,-581.79986078,0.00029354,2]
[398897099,1765973439015,-150.0,0.0002949,2]
[398897100,1765973439024,-500.0,0.0002949,2]
[398897101,1765973439033,-197.98932537,0.00029627,2]
[398897102,1765973439043,-500.0,0.00029627,2]
[398897103,1765973439052,-500.0,0.00029764,2]
[398897104,1765973439062,-204.0,0.0002989,2]
[398897105,1765973439071,-500.0,0.00029901,2]
[398897106,1765973439080,-500.0,0.00030038,2]
[398897107,1765973439090,-750.45882515,0.00030074,2]
[398897108,1765973439099,-500.0,0.00030175,2]
[398897109,1765973439109,-160.0,0.00030175,2]
[398897110,1765973439118,-265.31846928,0.00030291,2]
[398897111,1765973439128,-500.0,0.00030312,2]
[398897112,1765973439137,-500.0,0.00030449,2]
[398897113,1765973439147,-500.0,0.00030586,2]
[398897114,1765973439156,-500.0,0.00030723,2]
[398897115,1765973439166,-260.0,0.00030723,2]
[398897116,1765973439176,-500.0,0.0003086,2]
[398897117,1765973439188,-500.0,0.00030997,2]
[398897118,1765973439197,-500.0,0.00031062,2]
[398897119,1765973439206,-3355.35513481,0.00031128,2]
[398897120,1765973439216,-500.0,0.00031134,2]
[398897121,1765973439225,-500.0,0.00031199,2]
[398897122,1765973439235,-500.0,0.00031271,2]
[398897123,1765973439244,-360.0,0.00031271,2]
[398897124,1765973439254,-350.0,0.00031336,2]
[398897125,1765973439265,-182.29,0.00031397,2]
[398897126,1765973439275,-500.0,0.00031407,2]
[398897127,1765973439285,-500.0,0.00031407,2]
[398897128,1765973439294,-500.0,0.00031407,2]
[398897129,1765973439304,-500.0,0.00031407,2]
[398897130,1765973439315,-500.0,0.00031407,2]
[398897131,1765973439323,-500.0,0.00031407,2]
[398897132,1765973439332,-500.0,0.00031407,2]
[398897133,1765973439341,-500.0,0.00031407,2]
[398897134,1765973439350,-500.0,0.00031407,2]
[398897135,1765973439359,-500.0,0.00031407,2]
[398897136,1765973439368,-500.0,0.00031407,2]
[398897137,1765973439376,-500.0,0.00031407,2]
[398897138,1765973439385,-500.0,0.00031407,2]
[398897139,1765973439394,-624.3088419,0.00031407,2]
[398897140,1765973439402,-500.0,0.00031407,2]
[398897141,1765973439411,-500.0,0.00031407,2]
[398897142,1765973439420,-500.0,0.00031407,2]
[398897143,1765973439429,-500.0,0.00031407,2]
[398897144,1765973439438,-500.0,0.00031407,2]
[398897145,1765973439447,-500.0,0.00031407,2]
[398897146,1765973439456,-500.0,0.00031407,2]
[398897147,1765973439465,-500.0,0.00031407,2]
[398897148,1765973439475,-500.0,0.00031407,2]
[398897149,1765973439484,-500.0,0.00031407,2]
[398897150,1765973439493,-500.0,0.00031407,2]
[398897151,1765973439503,-500.0,0.00031407,2]
[398897152,1765973439511,-500.0,0.00031407,2]
[398897153,1765973439521,-500.0,0.00031407,2]
[398897154,1765973439530,-500.0,0.00031407,2]
[398897155,1765973439541,-500.0,0.00031407,2]